{"text_format":"3","workbook":"xlsx","n_sheets":2,"sheets":["Pencatat Penurunan Berat Badan","perhitungan"],"not_rendered":{"charts":1,"defined_names":10},"read":"whole","date_system":"1900"}

{"sheet":"Pencatat Penurunan Berat Badan","index":0,"n_rows":19,"n_cols":9,"rows_kept":19,"merged":[[0,3,0,7],[0,8,0,9],[1,3,2,9]]}
[null,"BERAT TARGET","TAMPILAN BAGAN","Nama",{"$nulls":4},"PENURUNAN BERAT BADAN"]
[{"$nulls":3},"PENCATAT"]
[null,{"v":172,"d":"172.0"},"MINGGUAN"]
[null,"TAMPILKAN BERAT TARGET","Ya"]
[null,"Bagan Pencatat Berat yang mencatat berat badan saat ini ada di sel ini. Pilih “Ya” di sel C4 untuk menampilkan garis Berat Target di atas bagan area."]
[]
[null,"TANGGAL","BERAT"]
[null,{"$f":"TODAY()-77","v":"2022-01-13"},{"v":176,"d":"176.0"}]
[null,{"$f":"TODAY()-70","v":"2022-01-20"},{"v":176,"d":"176.0"}]
[null,{"$f":"TODAY()-63","v":"2022-01-27"},177.6]
[null,{"$f":"TODAY()-56","v":"2022-02-03"},176.5]
[null,{"$f":"TODAY()-49","v":"2022-02-10"},176.1]
[null,{"$f":"TODAY()-42","v":"2022-02-17"},{"v":174,"d":"174.0"}]
[null,{"$f":"TODAY()-35","v":"2022-02-24"},173.5]
[null,{"$f":"TODAY()-28","v":"2022-03-03"},{"v":173,"d":"173.0"}]
[null,{"$f":"TODAY()-21","v":"2022-03-10"},{"v":172,"d":"172.0"}]
[null,{"$f":"TODAY()-14","v":"2022-03-17"},{"v":172,"d":"172.0"}]
[null,{"$f":"TODAY()-7","v":"2022-03-24"},{"v":173,"d":"173.0"}]
[null,{"$f":"TODAY()","v":"2022-03-31"},{"v":172,"d":"172.0"}]

{"sheet":"perhitungan","index":1,"n_rows":107,"n_cols":17,"rows_kept":107,"hidden":true}
["*** Lembar harus tetap tersembunyi ***"]
[]
[{"$f":"COUNTIF(A5:A107,FALSE)","v":12},"Periode","Nilai",{"$nulls":3},{"$f":"COUNTIF(H5:H28,\">\"&0)","v":3},"Periode",null,"Nilai"]
[null,"Minggu",null,null,{"$f":"IFERROR(IF(TampilkanBeratTarget=\"Ya\", TRUE, FALSE),FALSE)","v":true},null,null,"Bulan","EOM"]
[{"$f":"FALSE","v":false},{"$f":"IFERROR(IF(LEN('Pencatat Penurunan Berat Badan'!$B8)=0,TODAY(),'Pencatat Penurunan Berat Badan'!$B8),TODAY())","v":"2022-01-13"},{"$f":"IFERROR(IF(LEN('Pencatat Penurunan Berat Badan'!$C8)=0,BeratTarget,'Pencatat Penurunan Berat Badan'!$C8),0)","v":176},{"$f":"IFERROR(IF(MIN(PeriodeBagan)=0,TODAY(),MIN(PeriodeBagan)),TODAY())","v":"2022-01-13"},{"$f":"IFERROR(IF($A$5,0,IF($E$4,BeratTarget,NA())),0)","v":172},null,null,{"$f":"IFERROR(IF($A$5,TODAY(),DATE(YEAR($B5),MONTH($B5),1)),\"\")","v":"2022-01-01"},{"$f":"IFERROR(IF($A$5,TODAY(),EOMONTH($H5,0)),\"\")","v":"2022-01-31"},{"$f":"IFERROR(IF($A$5,0,AVERAGEIFS(Berat[BERAT],Berat[TANGGAL],\">=\"&$H5,Berat[TANGGAL],\"<=\"&$I5)),NA())","v":176.53333333333333}]
[{"$f":"IF((LEN('Pencatat Penurunan Berat Badan'!$C9)=0),TRUE)","v":false},{"$f":"IFERROR(IF(A6,0,IF(LEN('Pencatat Penurunan Berat Badan'!$B9)=0,0,'Pencatat Penurunan Berat Badan'!$B9)),\"\")","v":"2022-01-20"},{"$f":"IFERROR(IF(A6,0,IF(LEN('Pencatat Penurunan Berat Badan'!$C9)=0,0,'Pencatat Penurunan Berat Badan'!$C9)),\"\")","v":176},{"$f":"IFERROR(IF(MAX(PeriodeBagan)=0,TODAY(),MAX(PeriodeBagan)),TODAY())","v":"2022-03-31"},{"$f":"IFERROR(IF($A$5,0,IF($E$4,BeratTarget,NA())),0)","v":172},null,null,{"$f":"IF($I5+1>MAX($B:$B),NA(),$I5+1)","v":"2022-02-01"},{"$f":"EOMONTH($H6,0)","v":"2022-02-28"},{"$f":"IFERROR(AVERAGEIFS(Berat[BERAT],Berat[TANGGAL],\">=\"&$H6,Berat[TANGGAL],\"<=\"&$I6),NA())","v":175.025}]
[{"$f":"IF((LEN('Pencatat Penurunan Berat Badan'!$C10)=0),TRUE)","v":false},{"$f":"IFERROR(IF(A7,0,IF(LEN('Pencatat Penurunan Berat Badan'!$B10)=0,0,'Pencatat Penurunan Berat Badan'!$B10)),\"\")","v":"2022-01-27"},{"$f":"IFERROR(IF(A7,0,IF(LEN('Pencatat Penurunan Berat Badan'!$C10)=0,0,'Pencatat Penurunan Berat Badan'!$C10)),\"\")","v":177.6},{"$nulls":4},"2022-03-01","2022-03-31",{"$f":"IFERROR(AVERAGEIFS(Berat[BERAT],Berat[TANGGAL],\">=\"&$H7,Berat[TANGGAL],\"<=\"&$I7),NA())","v":172.4}]
[{"$f":"IF((LEN('Pencatat Penurunan Berat Badan'!$C11)=0),TRUE)","v":false},{"$f":"IFERROR(IF(A8,0,IF(LEN('Pencatat Penurunan Berat Badan'!$B11)=0,0,'Pencatat Penurunan Berat Badan'!$B11)),\"\")","v":"2022-02-03"},{"$f":"IFERROR(IF(A8,0,IF(LEN('Pencatat Penurunan Berat Badan'!$C11)=0,0,'Pencatat Penurunan Berat Badan'!$C11)),\"\")","v":176.5},{"$nulls":4},{"$error":"#N/A"},{"$error":"#N/A"},{"$f":"IFERROR(AVERAGEIFS(Berat[BERAT],Berat[TANGGAL],\">=\"&$H8,Berat[TANGGAL],\"<=\"&$I8),NA())","v":{"$error":"#N/A"}}]
[{"$f":"IF((LEN('Pencatat Penurunan Berat Badan'!$C12)=0),TRUE)","v":false},{"$f":"IFERROR(IF(A9,0,IF(LEN('Pencatat Penurunan Berat Badan'!$B12)=0,0,'Pencatat Penurunan Berat Badan'!$B12)),\"\")","v":"2022-02-10"},{"$f":"IFERROR(IF(A9,0,IF(LEN('Pencatat Penurunan Berat Badan'!$C12)=0,0,'Pencatat Penurunan Berat Badan'!$C12)),\"\")","v":176.1},{"$nulls":4},{"$error":"#N/A"},{"$error":"#N/A"},{"$f":"IFERROR(AVERAGEIFS(Berat[BERAT],Berat[TANGGAL],\">=\"&$H9,Berat[TANGGAL],\"<=\"&$I9),NA())","v":{"$error":"#N/A"}}]
[{"$f":"IF((LEN('Pencatat Penurunan Berat Badan'!$C13)=0),TRUE)","v":false},{"$f":"IFERROR(IF(A10,0,IF(LEN('Pencatat Penurunan Berat Badan'!$B13)=0,0,'Pencatat Penurunan Berat Badan'!$B13)),\"\")","v":"2022-02-17"},{"$f":"IFERROR(IF(A10,0,IF(LEN('Pencatat Penurunan Berat Badan'!$C13)=0,0,'Pencatat Penurunan Berat Badan'!$C13)),\"\")","v":174},{"$nulls":4},{"$error":"#N/A"},{"$error":"#N/A"},{"$f":"IFERROR(AVERAGEIFS(Berat[BERAT],Berat[TANGGAL],\">=\"&$H10,Berat[TANGGAL],\"<=\"&$I10),NA())","v":{"$error":"#N/A"}}]
[{"$f":"IF((LEN('Pencatat Penurunan Berat Badan'!$C14)=0),TRUE)","v":false},{"$f":"IFERROR(IF(A11,0,IF(LEN('Pencatat Penurunan Berat Badan'!$B14)=0,0,'Pencatat Penurunan Berat Badan'!$B14)),\"\")","v":"2022-02-24"},{"$f":"IFERROR(IF(A11,0,IF(LEN('Pencatat Penurunan Berat Badan'!$C14)=0,0,'Pencatat Penurunan Berat Badan'!$C14)),\"\")","v":173.5},{"$nulls":4},{"$error":"#N/A"},{"$error":"#N/A"},{"$f":"IFERROR(AVERAGEIFS(Berat[BERAT],Berat[TANGGAL],\">=\"&$H11,Berat[TANGGAL],\"<=\"&$I11),NA())","v":{"$error":"#N/A"}},{"$nulls":6},{"$f":"MAX($B:$B)","v":"2022-03-31"}]
[{"$f":"IF((LEN('Pencatat Penurunan Berat Badan'!$C15)=0),TRUE)","v":false},{"$f":"IFERROR(IF(A12,0,IF(LEN('Pencatat Penurunan Berat Badan'!$B15)=0,0,'Pencatat Penurunan Berat Badan'!$B15)),\"\")","v":"2022-03-03"},{"$f":"IFERROR(IF(A12,0,IF(LEN('Pencatat Penurunan Berat Badan'!$C15)=0,0,'Pencatat Penurunan Berat Badan'!$C15)),\"\")","v":173},{"$nulls":4},{"$error":"#N/A"},{"$error":"#N/A"},{"$f":"IFERROR(AVERAGEIFS(Berat[BERAT],Berat[TANGGAL],\">=\"&$H12,Berat[TANGGAL],\"<=\"&$I12),NA())","v":{"$error":"#N/A"}}]
[{"$f":"IF((LEN('Pencatat Penurunan Berat Badan'!$C16)=0),TRUE)","v":false},{"$f":"IFERROR(IF(A13,0,IF(LEN('Pencatat Penurunan Berat Badan'!$B16)=0,0,'Pencatat Penurunan Berat Badan'!$B16)),\"\")","v":"2022-03-10"},{"$f":"IFERROR(IF(A13,0,IF(LEN('Pencatat Penurunan Berat Badan'!$C16)=0,0,'Pencatat Penurunan Berat Badan'!$C16)),\"\")","v":172},{"$nulls":4},{"$error":"#N/A"},{"$error":"#N/A"},{"$f":"IFERROR(AVERAGEIFS(Berat[BERAT],Berat[TANGGAL],\">=\"&$H13,Berat[TANGGAL],\"<=\"&$I13),NA())","v":{"$error":"#N/A"}}]
[{"$f":"IF((LEN('Pencatat Penurunan Berat Badan'!$C17)=0),TRUE)","v":false},{"$f":"IFERROR(IF(A14,0,IF(LEN('Pencatat Penurunan Berat Badan'!$B17)=0,0,'Pencatat Penurunan Berat Badan'!$B17)),\"\")","v":"2022-03-17"},{"$f":"IFERROR(IF(A14,0,IF(LEN('Pencatat Penurunan Berat Badan'!$C17)=0,0,'Pencatat Penurunan Berat Badan'!$C17)),\"\")","v":172},{"$nulls":4},{"$error":"#N/A"},{"$error":"#N/A"},{"$f":"IFERROR(AVERAGEIFS(Berat[BERAT],Berat[TANGGAL],\">=\"&$H14,Berat[TANGGAL],\"<=\"&$I14),NA())","v":{"$error":"#N/A"}}]
[{"$f":"IF((LEN('Pencatat Penurunan Berat Badan'!$C18)=0),TRUE)","v":false},{"$f":"IFERROR(IF(A15,0,IF(LEN('Pencatat Penurunan Berat Badan'!$B18)=0,0,'Pencatat Penurunan Berat Badan'!$B18)),\"\")","v":"2022-03-24"},{"$f":"IFERROR(IF(A15,0,IF(LEN('Pencatat Penurunan Berat Badan'!$C18)=0,0,'Pencatat Penurunan Berat Badan'!$C18)),\"\")","v":173},{"$nulls":4},{"$error":"#N/A"},{"$error":"#N/A"},{"$f":"IFERROR(AVERAGEIFS(Berat[BERAT],Berat[TANGGAL],\">=\"&$H15,Berat[TANGGAL],\"<=\"&$I15),NA())","v":{"$error":"#N/A"}}]
[{"$f":"IF((LEN('Pencatat Penurunan Berat Badan'!$C19)=0),TRUE)","v":false},{"$f":"IFERROR(IF(A16,0,IF(LEN('Pencatat Penurunan Berat Badan'!$B19)=0,0,'Pencatat Penurunan Berat Badan'!$B19)),\"\")","v":"2022-03-31"},{"$f":"IFERROR(IF(A16,0,IF(LEN('Pencatat Penurunan Berat Badan'!$C19)=0,0,'Pencatat Penurunan Berat Badan'!$C19)),\"\")","v":172},{"$nulls":4},{"$error":"#N/A"},{"$error":"#N/A"},{"$f":"IFERROR(AVERAGEIFS(Berat[BERAT],Berat[TANGGAL],\">=\"&$H16,Berat[TANGGAL],\"<=\"&$I16),NA())","v":{"$error":"#N/A"}}]
[{"$f":"IF((LEN('Pencatat Penurunan Berat Badan'!$C20)=0),TRUE)","v":true},{"$f":"IFERROR(IF(A17,0,IF(LEN('Pencatat Penurunan Berat Badan'!$B20)=0,0,'Pencatat Penurunan Berat Badan'!$B20)),\"\")","v":"00:00:00"},{"$f":"IFERROR(IF(A17,0,IF(LEN('Pencatat Penurunan Berat Badan'!$C20)=0,0,'Pencatat Penurunan Berat Badan'!$C20)),\"\")","v":0},{"$nulls":4},{"$error":"#N/A"},{"$error":"#N/A"},{"$f":"IFERROR(AVERAGEIFS(Berat[BERAT],Berat[TANGGAL],\">=\"&$H17,Berat[TANGGAL],\"<=\"&$I17),NA())","v":{"$error":"#N/A"}}]
[{"$f":"IF((LEN('Pencatat Penurunan Berat Badan'!$C21)=0),TRUE)","v":true},{"$f":"IFERROR(IF(A18,0,IF(LEN('Pencatat Penurunan Berat Badan'!$B21)=0,0,'Pencatat Penurunan Berat Badan'!$B21)),\"\")","v":"00:00:00"},{"$f":"IFERROR(IF(A18,0,IF(LEN('Pencatat Penurunan Berat Badan'!$C21)=0,0,'Pencatat Penurunan Berat Badan'!$C21)),\"\")","v":0},{"$nulls":4},{"$error":"#N/A"},{"$error":"#N/A"},{"$f":"IFERROR(AVERAGEIFS(Berat[BERAT],Berat[TANGGAL],\">=\"&$H18,Berat[TANGGAL],\"<=\"&$I18),NA())","v":{"$error":"#N/A"}}]
[{"$f":"IF((LEN('Pencatat Penurunan Berat Badan'!$C22)=0),TRUE)","v":true},{"$f":"IFERROR(IF(A19,0,IF(LEN('Pencatat Penurunan Berat Badan'!$B22)=0,0,'Pencatat Penurunan Berat Badan'!$B22)),\"\")","v":"00:00:00"},{"$f":"IFERROR(IF(A19,0,IF(LEN('Pencatat Penurunan Berat Badan'!$C22)=0,0,'Pencatat Penurunan Berat Badan'!$C22)),\"\")","v":0},{"$nulls":4},{"$error":"#N/A"},{"$error":"#N/A"},{"$f":"IFERROR(AVERAGEIFS(Berat[BERAT],Berat[TANGGAL],\">=\"&$H19,Berat[TANGGAL],\"<=\"&$I19),NA())","v":{"$error":"#N/A"}}]
[{"$f":"IF((LEN('Pencatat Penurunan Berat Badan'!$C23)=0),TRUE)","v":true},{"$f":"IFERROR(IF(A20,0,IF(LEN('Pencatat Penurunan Berat Badan'!$B23)=0,0,'Pencatat Penurunan Berat Badan'!$B23)),\"\")","v":"00:00:00"},{"$f":"IFERROR(IF(A20,0,IF(LEN('Pencatat Penurunan Berat Badan'!$C23)=0,0,'Pencatat Penurunan Berat Badan'!$C23)),\"\")","v":0},{"$nulls":4},{"$error":"#N/A"},{"$error":"#N/A"},{"$f":"IFERROR(AVERAGEIFS(Berat[BERAT],Berat[TANGGAL],\">=\"&$H20,Berat[TANGGAL],\"<=\"&$I20),NA())","v":{"$error":"#N/A"}}]
[{"$f":"IF((LEN('Pencatat Penurunan Berat Badan'!$C24)=0),TRUE)","v":true},{"$f":"IFERROR(IF(A21,0,IF(LEN('Pencatat Penurunan Berat Badan'!$B24)=0,0,'Pencatat Penurunan Berat Badan'!$B24)),\"\")","v":"00:00:00"},{"$f":"IFERROR(IF(A21,0,IF(LEN('Pencatat Penurunan Berat Badan'!$C24)=0,0,'Pencatat Penurunan Berat Badan'!$C24)),\"\")","v":0},{"$nulls":4},{"$error":"#N/A"},{"$error":"#N/A"},{"$f":"IFERROR(AVERAGEIFS(Berat[BERAT],Berat[TANGGAL],\">=\"&$H21,Berat[TANGGAL],\"<=\"&$I21),NA())","v":{"$error":"#N/A"}}]
[{"$f":"IF((LEN('Pencatat Penurunan Berat Badan'!$C25)=0),TRUE)","v":true},{"$f":"IFERROR(IF(A22,0,IF(LEN('Pencatat Penurunan Berat Badan'!$B25)=0,0,'Pencatat Penurunan Berat Badan'!$B25)),\"\")","v":"00:00:00"},{"$f":"IFERROR(IF(A22,0,IF(LEN('Pencatat Penurunan Berat Badan'!$C25)=0,0,'Pencatat Penurunan Berat Badan'!$C25)),\"\")","v":0},{"$nulls":4},{"$error":"#N/A"},{"$error":"#N/A"},{"$f":"IFERROR(AVERAGEIFS(Berat[BERAT],Berat[TANGGAL],\">=\"&$H22,Berat[TANGGAL],\"<=\"&$I22),NA())","v":{"$error":"#N/A"}}]
[{"$f":"IF((LEN('Pencatat Penurunan Berat Badan'!$C26)=0),TRUE)","v":true},{"$f":"IFERROR(IF(A23,0,IF(LEN('Pencatat Penurunan Berat Badan'!$B26)=0,0,'Pencatat Penurunan Berat Badan'!$B26)),\"\")","v":"00:00:00"},{"$f":"IFERROR(IF(A23,0,IF(LEN('Pencatat Penurunan Berat Badan'!$C26)=0,0,'Pencatat Penurunan Berat Badan'!$C26)),\"\")","v":0},{"$nulls":4},{"$error":"#N/A"},{"$error":"#N/A"},{"$f":"IFERROR(AVERAGEIFS(Berat[BERAT],Berat[TANGGAL],\">=\"&$H23,Berat[TANGGAL],\"<=\"&$I23),NA())","v":{"$error":"#N/A"}}]
[{"$f":"IF((LEN('Pencatat Penurunan Berat Badan'!$C27)=0),TRUE)","v":true},{"$f":"IFERROR(IF(A24,0,IF(LEN('Pencatat Penurunan Berat Badan'!$B27)=0,0,'Pencatat Penurunan Berat Badan'!$B27)),\"\")","v":"00:00:00"},{"$f":"IFERROR(IF(A24,0,IF(LEN('Pencatat Penurunan Berat Badan'!$C27)=0,0,'Pencatat Penurunan Berat Badan'!$C27)),\"\")","v":0},{"$nulls":4},{"$error":"#N/A"},{"$error":"#N/A"},{"$f":"IFERROR(AVERAGEIFS(Berat[BERAT],Berat[TANGGAL],\">=\"&$H24,Berat[TANGGAL],\"<=\"&$I24),NA())","v":{"$error":"#N/A"}}]
[{"$f":"IF((LEN('Pencatat Penurunan Berat Badan'!$C28)=0),TRUE)","v":true},{"$f":"IFERROR(IF(A25,0,IF(LEN('Pencatat Penurunan Berat Badan'!$B28)=0,0,'Pencatat Penurunan Berat Badan'!$B28)),\"\")","v":"00:00:00"},{"$f":"IFERROR(IF(A25,0,IF(LEN('Pencatat Penurunan Berat Badan'!$C28)=0,0,'Pencatat Penurunan Berat Badan'!$C28)),\"\")","v":0},{"$nulls":4},{"$error":"#N/A"},{"$error":"#N/A"},{"$f":"IFERROR(AVERAGEIFS(Berat[BERAT],Berat[TANGGAL],\">=\"&$H25,Berat[TANGGAL],\"<=\"&$I25),NA())","v":{"$error":"#N/A"}}]
[{"$f":"IF((LEN('Pencatat Penurunan Berat Badan'!$C29)=0),TRUE)","v":true},{"$f":"IFERROR(IF(A26,0,IF(LEN('Pencatat Penurunan Berat Badan'!$B29)=0,0,'Pencatat Penurunan Berat Badan'!$B29)),\"\")","v":"00:00:00"},{"$f":"IFERROR(IF(A26,0,IF(LEN('Pencatat Penurunan Berat Badan'!$C29)=0,0,'Pencatat Penurunan Berat Badan'!$C29)),\"\")","v":0},{"$nulls":4},{"$error":"#N/A"},{"$error":"#N/A"},{"$f":"IFERROR(AVERAGEIFS(Berat[BERAT],Berat[TANGGAL],\">=\"&$H26,Berat[TANGGAL],\"<=\"&$I26),NA())","v":{"$error":"#N/A"}}]
[{"$f":"IF((LEN('Pencatat Penurunan Berat Badan'!$C30)=0),TRUE)","v":true},{"$f":"IFERROR(IF(A27,0,IF(LEN('Pencatat Penurunan Berat Badan'!$B30)=0,0,'Pencatat Penurunan Berat Badan'!$B30)),\"\")","v":"00:00:00"},{"$f":"IFERROR(IF(A27,0,IF(LEN('Pencatat Penurunan Berat Badan'!$C30)=0,0,'Pencatat Penurunan Berat Badan'!$C30)),\"\")","v":0},{"$nulls":4},{"$error":"#N/A"},{"$error":"#N/A"},{"$f":"IFERROR(AVERAGEIFS(Berat[BERAT],Berat[TANGGAL],\">=\"&$H27,Berat[TANGGAL],\"<=\"&$I27),NA())","v":{"$error":"#N/A"}}]
[{"$f":"IF((LEN('Pencatat Penurunan Berat Badan'!$C31)=0),TRUE)","v":true},{"$f":"IFERROR(IF(A28,0,IF(LEN('Pencatat Penurunan Berat Badan'!$B31)=0,0,'Pencatat Penurunan Berat Badan'!$B31)),\"\")","v":"00:00:00"},{"$f":"IFERROR(IF(A28,0,IF(LEN('Pencatat Penurunan Berat Badan'!$C31)=0,0,'Pencatat Penurunan Berat Badan'!$C31)),\"\")","v":0},{"$nulls":4},{"$error":"#N/A"},{"$error":"#N/A"},{"$f":"IFERROR(AVERAGEIFS(Berat[BERAT],Berat[TANGGAL],\">=\"&$H28,Berat[TANGGAL],\"<=\"&$I28),NA())","v":{"$error":"#N/A"}}]
[{"$f":"IF((LEN('Pencatat Penurunan Berat Badan'!$C32)=0),TRUE)","v":true},{"$f":"IFERROR(IF(A29,0,IF(LEN('Pencatat Penurunan Berat Badan'!$B32)=0,0,'Pencatat Penurunan Berat Badan'!$B32)),\"\")","v":"00:00:00"},{"$f":"IFERROR(IF(A29,0,IF(LEN('Pencatat Penurunan Berat Badan'!$C32)=0,0,'Pencatat Penurunan Berat Badan'!$C32)),\"\")","v":0}]
[{"$f":"IF((LEN('Pencatat Penurunan Berat Badan'!$C33)=0),TRUE)","v":true},{"$f":"IFERROR(IF(A30,0,IF(LEN('Pencatat Penurunan Berat Badan'!$B33)=0,0,'Pencatat Penurunan Berat Badan'!$B33)),\"\")","v":"00:00:00"},{"$f":"IFERROR(IF(A30,0,IF(LEN('Pencatat Penurunan Berat Badan'!$C33)=0,0,'Pencatat Penurunan Berat Badan'!$C33)),\"\")","v":0}]
[{"$f":"IF((LEN('Pencatat Penurunan Berat Badan'!$C34)=0),TRUE)","v":true},{"$f":"IFERROR(IF(A31,0,IF(LEN('Pencatat Penurunan Berat Badan'!$B34)=0,0,'Pencatat Penurunan Berat Badan'!$B34)),\"\")","v":"00:00:00"},{"$f":"IFERROR(IF(A31,0,IF(LEN('Pencatat Penurunan Berat Badan'!$C34)=0,0,'Pencatat Penurunan Berat Badan'!$C34)),\"\")","v":0}]
[{"$f":"IF((LEN('Pencatat Penurunan Berat Badan'!$C35)=0),TRUE)","v":true},{"$f":"IFERROR(IF(A32,0,IF(LEN('Pencatat Penurunan Berat Badan'!$B35)=0,0,'Pencatat Penurunan Berat Badan'!$B35)),\"\")","v":"00:00:00"},{"$f":"IFERROR(IF(A32,0,IF(LEN('Pencatat Penurunan Berat Badan'!$C35)=0,0,'Pencatat Penurunan Berat Badan'!$C35)),\"\")","v":0}]
[{"$f":"IF((LEN('Pencatat Penurunan Berat Badan'!$C36)=0),TRUE)","v":true},{"$f":"IFERROR(IF(A33,0,IF(LEN('Pencatat Penurunan Berat Badan'!$B36)=0,0,'Pencatat Penurunan Berat Badan'!$B36)),\"\")","v":"00:00:00"},{"$f":"IFERROR(IF(A33,0,IF(LEN('Pencatat Penurunan Berat Badan'!$C36)=0,0,'Pencatat Penurunan Berat Badan'!$C36)),\"\")","v":0}]
[{"$f":"IF((LEN('Pencatat Penurunan Berat Badan'!$C37)=0),TRUE)","v":true},{"$f":"IFERROR(IF(A34,0,IF(LEN('Pencatat Penurunan Berat Badan'!$B37)=0,0,'Pencatat Penurunan Berat Badan'!$B37)),\"\")","v":"00:00:00"},{"$f":"IFERROR(IF(A34,0,IF(LEN('Pencatat Penurunan Berat Badan'!$C37)=0,0,'Pencatat Penurunan Berat Badan'!$C37)),\"\")","v":0}]
[{"$f":"IF((LEN('Pencatat Penurunan Berat Badan'!$C38)=0),TRUE)","v":true},{"$f":"IFERROR(IF(A35,0,IF(LEN('Pencatat Penurunan Berat Badan'!$B38)=0,0,'Pencatat Penurunan Berat Badan'!$B38)),\"\")","v":"00:00:00"},{"$f":"IFERROR(IF(A35,0,IF(LEN('Pencatat Penurunan Berat Badan'!$C38)=0,0,'Pencatat Penurunan Berat Badan'!$C38)),\"\")","v":0}]
[{"$f":"IF((LEN('Pencatat Penurunan Berat Badan'!$C39)=0),TRUE)","v":true},{"$f":"IFERROR(IF(A36,0,IF(LEN('Pencatat Penurunan Berat Badan'!$B39)=0,0,'Pencatat Penurunan Berat Badan'!$B39)),\"\")","v":"00:00:00"},{"$f":"IFERROR(IF(A36,0,IF(LEN('Pencatat Penurunan Berat Badan'!$C39)=0,0,'Pencatat Penurunan Berat Badan'!$C39)),\"\")","v":0}]
[{"$f":"IF((LEN('Pencatat Penurunan Berat Badan'!$C40)=0),TRUE)","v":true},{"$f":"IFERROR(IF(A37,0,IF(LEN('Pencatat Penurunan Berat Badan'!$B40)=0,0,'Pencatat Penurunan Berat Badan'!$B40)),\"\")","v":"00:00:00"},{"$f":"IFERROR(IF(A37,0,IF(LEN('Pencatat Penurunan Berat Badan'!$C40)=0,0,'Pencatat Penurunan Berat Badan'!$C40)),\"\")","v":0}]
[{"$f":"IF((LEN('Pencatat Penurunan Berat Badan'!$C41)=0),TRUE)","v":true},{"$f":"IFERROR(IF(A38,0,IF(LEN('Pencatat Penurunan Berat Badan'!$B41)=0,0,'Pencatat Penurunan Berat Badan'!$B41)),\"\")","v":"00:00:00"},{"$f":"IFERROR(IF(A38,0,IF(LEN('Pencatat Penurunan Berat Badan'!$C41)=0,0,'Pencatat Penurunan Berat Badan'!$C41)),\"\")","v":0}]
[{"$f":"IF((LEN('Pencatat Penurunan Berat Badan'!$C42)=0),TRUE)","v":true},{"$f":"IFERROR(IF(A39,0,IF(LEN('Pencatat Penurunan Berat Badan'!$B42)=0,0,'Pencatat Penurunan Berat Badan'!$B42)),\"\")","v":"00:00:00"},{"$f":"IFERROR(IF(A39,0,IF(LEN('Pencatat Penurunan Berat Badan'!$C42)=0,0,'Pencatat Penurunan Berat Badan'!$C42)),\"\")","v":0}]
[{"$f":"IF((LEN('Pencatat Penurunan Berat Badan'!$C43)=0),TRUE)","v":true},{"$f":"IFERROR(IF(A40,0,IF(LEN('Pencatat Penurunan Berat Badan'!$B43)=0,0,'Pencatat Penurunan Berat Badan'!$B43)),\"\")","v":"00:00:00"},{"$f":"IFERROR(IF(A40,0,IF(LEN('Pencatat Penurunan Berat Badan'!$C43)=0,0,'Pencatat Penurunan Berat Badan'!$C43)),\"\")","v":0}]
[{"$f":"IF((LEN('Pencatat Penurunan Berat Badan'!$C44)=0),TRUE)","v":true},{"$f":"IFERROR(IF(A41,0,IF(LEN('Pencatat Penurunan Berat Badan'!$B44)=0,0,'Pencatat Penurunan Berat Badan'!$B44)),\"\")","v":"00:00:00"},{"$f":"IFERROR(IF(A41,0,IF(LEN('Pencatat Penurunan Berat Badan'!$C44)=0,0,'Pencatat Penurunan Berat Badan'!$C44)),\"\")","v":0}]
[{"$f":"IF((LEN('Pencatat Penurunan Berat Badan'!$C45)=0),TRUE)","v":true},{"$f":"IFERROR(IF(A42,0,IF(LEN('Pencatat Penurunan Berat Badan'!$B45)=0,0,'Pencatat Penurunan Berat Badan'!$B45)),\"\")","v":"00:00:00"},{"$f":"IFERROR(IF(A42,0,IF(LEN('Pencatat Penurunan Berat Badan'!$C45)=0,0,'Pencatat Penurunan Berat Badan'!$C45)),\"\")","v":0}]
[{"$f":"IF((LEN('Pencatat Penurunan Berat Badan'!$C46)=0),TRUE)","v":true},{"$f":"IFERROR(IF(A43,0,IF(LEN('Pencatat Penurunan Berat Badan'!$B46)=0,0,'Pencatat Penurunan Berat Badan'!$B46)),\"\")","v":"00:00:00"},{"$f":"IFERROR(IF(A43,0,IF(LEN('Pencatat Penurunan Berat Badan'!$C46)=0,0,'Pencatat Penurunan Berat Badan'!$C46)),\"\")","v":0}]
[{"$f":"IF((LEN('Pencatat Penurunan Berat Badan'!$C47)=0),TRUE)","v":true},{"$f":"IFERROR(IF(A44,0,IF(LEN('Pencatat Penurunan Berat Badan'!$B47)=0,0,'Pencatat Penurunan Berat Badan'!$B47)),\"\")","v":"00:00:00"},{"$f":"IFERROR(IF(A44,0,IF(LEN('Pencatat Penurunan Berat Badan'!$C47)=0,0,'Pencatat Penurunan Berat Badan'!$C47)),\"\")","v":0}]
[{"$f":"IF((LEN('Pencatat Penurunan Berat Badan'!$C48)=0),TRUE)","v":true},{"$f":"IFERROR(IF(A45,0,IF(LEN('Pencatat Penurunan Berat Badan'!$B48)=0,0,'Pencatat Penurunan Berat Badan'!$B48)),\"\")","v":"00:00:00"},{"$f":"IFERROR(IF(A45,0,IF(LEN('Pencatat Penurunan Berat Badan'!$C48)=0,0,'Pencatat Penurunan Berat Badan'!$C48)),\"\")","v":0}]
[{"$f":"IF((LEN('Pencatat Penurunan Berat Badan'!$C49)=0),TRUE)","v":true},{"$f":"IFERROR(IF(A46,0,IF(LEN('Pencatat Penurunan Berat Badan'!$B49)=0,0,'Pencatat Penurunan Berat Badan'!$B49)),\"\")","v":"00:00:00"},{"$f":"IFERROR(IF(A46,0,IF(LEN('Pencatat Penurunan Berat Badan'!$C49)=0,0,'Pencatat Penurunan Berat Badan'!$C49)),\"\")","v":0}]
[{"$f":"IF((LEN('Pencatat Penurunan Berat Badan'!$C50)=0),TRUE)","v":true},{"$f":"IFERROR(IF(A47,0,IF(LEN('Pencatat Penurunan Berat Badan'!$B50)=0,0,'Pencatat Penurunan Berat Badan'!$B50)),\"\")","v":"00:00:00"},{"$f":"IFERROR(IF(A47,0,IF(LEN('Pencatat Penurunan Berat Badan'!$C50)=0,0,'Pencatat Penurunan Berat Badan'!$C50)),\"\")","v":0}]
[{"$f":"IF((LEN('Pencatat Penurunan Berat Badan'!$C51)=0),TRUE)","v":true},{"$f":"IFERROR(IF(A48,0,IF(LEN('Pencatat Penurunan Berat Badan'!$B51)=0,0,'Pencatat Penurunan Berat Badan'!$B51)),\"\")","v":"00:00:00"},{"$f":"IFERROR(IF(A48,0,IF(LEN('Pencatat Penurunan Berat Badan'!$C51)=0,0,'Pencatat Penurunan Berat Badan'!$C51)),\"\")","v":0}]
[{"$f":"IF((LEN('Pencatat Penurunan Berat Badan'!$C52)=0),TRUE)","v":true},{"$f":"IFERROR(IF(A49,0,IF(LEN('Pencatat Penurunan Berat Badan'!$B52)=0,0,'Pencatat Penurunan Berat Badan'!$B52)),\"\")","v":"00:00:00"},{"$f":"IFERROR(IF(A49,0,IF(LEN('Pencatat Penurunan Berat Badan'!$C52)=0,0,'Pencatat Penurunan Berat Badan'!$C52)),\"\")","v":0}]
[{"$f":"IF((LEN('Pencatat Penurunan Berat Badan'!$C53)=0),TRUE)","v":true},{"$f":"IFERROR(IF(A50,0,IF(LEN('Pencatat Penurunan Berat Badan'!$B53)=0,0,'Pencatat Penurunan Berat Badan'!$B53)),\"\")","v":"00:00:00"},{"$f":"IFERROR(IF(A50,0,IF(LEN('Pencatat Penurunan Berat Badan'!$C53)=0,0,'Pencatat Penurunan Berat Badan'!$C53)),\"\")","v":0}]
[{"$f":"IF((LEN('Pencatat Penurunan Berat Badan'!$C54)=0),TRUE)","v":true},{"$f":"IFERROR(IF(A51,0,IF(LEN('Pencatat Penurunan Berat Badan'!$B54)=0,0,'Pencatat Penurunan Berat Badan'!$B54)),\"\")","v":"00:00:00"},{"$f":"IFERROR(IF(A51,0,IF(LEN('Pencatat Penurunan Berat Badan'!$C54)=0,0,'Pencatat Penurunan Berat Badan'!$C54)),\"\")","v":0}]
[{"$f":"IF((LEN('Pencatat Penurunan Berat Badan'!$C55)=0),TRUE)","v":true},{"$f":"IFERROR(IF(A52,0,IF(LEN('Pencatat Penurunan Berat Badan'!$B55)=0,0,'Pencatat Penurunan Berat Badan'!$B55)),\"\")","v":"00:00:00"},{"$f":"IFERROR(IF(A52,0,IF(LEN('Pencatat Penurunan Berat Badan'!$C55)=0,0,'Pencatat Penurunan Berat Badan'!$C55)),\"\")","v":0}]
[{"$f":"IF((LEN('Pencatat Penurunan Berat Badan'!$C56)=0),TRUE)","v":true},{"$f":"IFERROR(IF(A53,0,IF(LEN('Pencatat Penurunan Berat Badan'!$B56)=0,0,'Pencatat Penurunan Berat Badan'!$B56)),\"\")","v":"00:00:00"},{"$f":"IFERROR(IF(A53,0,IF(LEN('Pencatat Penurunan Berat Badan'!$C56)=0,0,'Pencatat Penurunan Berat Badan'!$C56)),\"\")","v":0}]
[{"$f":"IF((LEN('Pencatat Penurunan Berat Badan'!$C57)=0),TRUE)","v":true},{"$f":"IFERROR(IF(A54,0,IF(LEN('Pencatat Penurunan Berat Badan'!$B57)=0,0,'Pencatat Penurunan Berat Badan'!$B57)),\"\")","v":"00:00:00"},{"$f":"IFERROR(IF(A54,0,IF(LEN('Pencatat Penurunan Berat Badan'!$C57)=0,0,'Pencatat Penurunan Berat Badan'!$C57)),\"\")","v":0}]
[{"$f":"IF((LEN('Pencatat Penurunan Berat Badan'!$C58)=0),TRUE)","v":true},{"$f":"IFERROR(IF(A55,0,IF(LEN('Pencatat Penurunan Berat Badan'!$B58)=0,0,'Pencatat Penurunan Berat Badan'!$B58)),\"\")","v":"00:00:00"},{"$f":"IFERROR(IF(A55,0,IF(LEN('Pencatat Penurunan Berat Badan'!$C58)=0,0,'Pencatat Penurunan Berat Badan'!$C58)),\"\")","v":0}]
[{"$f":"IF((LEN('Pencatat Penurunan Berat Badan'!$C59)=0),TRUE)","v":true},{"$f":"IFERROR(IF(A56,0,IF(LEN('Pencatat Penurunan Berat Badan'!$B59)=0,0,'Pencatat Penurunan Berat Badan'!$B59)),\"\")","v":"00:00:00"},{"$f":"IFERROR(IF(A56,0,IF(LEN('Pencatat Penurunan Berat Badan'!$C59)=0,0,'Pencatat Penurunan Berat Badan'!$C59)),\"\")","v":0}]
[{"$f":"IF((LEN('Pencatat Penurunan Berat Badan'!$C60)=0),TRUE)","v":true},{"$f":"IFERROR(IF(A57,0,IF(LEN('Pencatat Penurunan Berat Badan'!$B60)=0,0,'Pencatat Penurunan Berat Badan'!$B60)),\"\")","v":"00:00:00"},{"$f":"IFERROR(IF(A57,0,IF(LEN('Pencatat Penurunan Berat Badan'!$C60)=0,0,'Pencatat Penurunan Berat Badan'!$C60)),\"\")","v":0}]
[{"$f":"IF((LEN('Pencatat Penurunan Berat Badan'!$C61)=0),TRUE)","v":true},{"$f":"IFERROR(IF(A58,0,IF(LEN('Pencatat Penurunan Berat Badan'!$B61)=0,0,'Pencatat Penurunan Berat Badan'!$B61)),\"\")","v":"00:00:00"},{"$f":"IFERROR(IF(A58,0,IF(LEN('Pencatat Penurunan Berat Badan'!$C61)=0,0,'Pencatat Penurunan Berat Badan'!$C61)),\"\")","v":0}]
[{"$f":"IF((LEN('Pencatat Penurunan Berat Badan'!$C62)=0),TRUE)","v":true},{"$f":"IFERROR(IF(A59,0,IF(LEN('Pencatat Penurunan Berat Badan'!$B62)=0,0,'Pencatat Penurunan Berat Badan'!$B62)),\"\")","v":"00:00:00"},{"$f":"IFERROR(IF(A59,0,IF(LEN('Pencatat Penurunan Berat Badan'!$C62)=0,0,'Pencatat Penurunan Berat Badan'!$C62)),\"\")","v":0}]
[{"$f":"IF((LEN('Pencatat Penurunan Berat Badan'!$C63)=0),TRUE)","v":true},{"$f":"IFERROR(IF(A60,0,IF(LEN('Pencatat Penurunan Berat Badan'!$B63)=0,0,'Pencatat Penurunan Berat Badan'!$B63)),\"\")","v":"00:00:00"},{"$f":"IFERROR(IF(A60,0,IF(LEN('Pencatat Penurunan Berat Badan'!$C63)=0,0,'Pencatat Penurunan Berat Badan'!$C63)),\"\")","v":0}]
[{"$f":"IF((LEN('Pencatat Penurunan Berat Badan'!$C64)=0),TRUE)","v":true},{"$f":"IFERROR(IF(A61,0,IF(LEN('Pencatat Penurunan Berat Badan'!$B64)=0,0,'Pencatat Penurunan Berat Badan'!$B64)),\"\")","v":"00:00:00"},{"$f":"IFERROR(IF(A61,0,IF(LEN('Pencatat Penurunan Berat Badan'!$C64)=0,0,'Pencatat Penurunan Berat Badan'!$C64)),\"\")","v":0}]
[{"$f":"IF((LEN('Pencatat Penurunan Berat Badan'!$C65)=0),TRUE)","v":true},{"$f":"IFERROR(IF(A62,0,IF(LEN('Pencatat Penurunan Berat Badan'!$B65)=0,0,'Pencatat Penurunan Berat Badan'!$B65)),\"\")","v":"00:00:00"},{"$f":"IFERROR(IF(A62,0,IF(LEN('Pencatat Penurunan Berat Badan'!$C65)=0,0,'Pencatat Penurunan Berat Badan'!$C65)),\"\")","v":0}]
[{"$f":"IF((LEN('Pencatat Penurunan Berat Badan'!$C66)=0),TRUE)","v":true},{"$f":"IFERROR(IF(A63,0,IF(LEN('Pencatat Penurunan Berat Badan'!$B66)=0,0,'Pencatat Penurunan Berat Badan'!$B66)),\"\")","v":"00:00:00"},{"$f":"IFERROR(IF(A63,0,IF(LEN('Pencatat Penurunan Berat Badan'!$C66)=0,0,'Pencatat Penurunan Berat Badan'!$C66)),\"\")","v":0}]
[{"$f":"IF((LEN('Pencatat Penurunan Berat Badan'!$C67)=0),TRUE)","v":true},{"$f":"IFERROR(IF(A64,0,IF(LEN('Pencatat Penurunan Berat Badan'!$B67)=0,0,'Pencatat Penurunan Berat Badan'!$B67)),\"\")","v":"00:00:00"},{"$f":"IFERROR(IF(A64,0,IF(LEN('Pencatat Penurunan Berat Badan'!$C67)=0,0,'Pencatat Penurunan Berat Badan'!$C67)),\"\")","v":0}]
[{"$f":"IF((LEN('Pencatat Penurunan Berat Badan'!$C68)=0),TRUE)","v":true},{"$f":"IFERROR(IF(A65,0,IF(LEN('Pencatat Penurunan Berat Badan'!$B68)=0,0,'Pencatat Penurunan Berat Badan'!$B68)),\"\")","v":"00:00:00"},{"$f":"IFERROR(IF(A65,0,IF(LEN('Pencatat Penurunan Berat Badan'!$C68)=0,0,'Pencatat Penurunan Berat Badan'!$C68)),\"\")","v":0}]
[{"$f":"IF((LEN('Pencatat Penurunan Berat Badan'!$C69)=0),TRUE)","v":true},{"$f":"IFERROR(IF(A66,0,IF(LEN('Pencatat Penurunan Berat Badan'!$B69)=0,0,'Pencatat Penurunan Berat Badan'!$B69)),\"\")","v":"00:00:00"},{"$f":"IFERROR(IF(A66,0,IF(LEN('Pencatat Penurunan Berat Badan'!$C69)=0,0,'Pencatat Penurunan Berat Badan'!$C69)),\"\")","v":0}]
[{"$f":"IF((LEN('Pencatat Penurunan Berat Badan'!$C70)=0),TRUE)","v":true},{"$f":"IFERROR(IF(A67,0,IF(LEN('Pencatat Penurunan Berat Badan'!$B70)=0,0,'Pencatat Penurunan Berat Badan'!$B70)),\"\")","v":"00:00:00"},{"$f":"IFERROR(IF(A67,0,IF(LEN('Pencatat Penurunan Berat Badan'!$C70)=0,0,'Pencatat Penurunan Berat Badan'!$C70)),\"\")","v":0}]
[{"$f":"IF((LEN('Pencatat Penurunan Berat Badan'!$C71)=0),TRUE)","v":true},{"$f":"IFERROR(IF(A68,0,IF(LEN('Pencatat Penurunan Berat Badan'!$B71)=0,0,'Pencatat Penurunan Berat Badan'!$B71)),\"\")","v":"00:00:00"},{"$f":"IFERROR(IF(A68,0,IF(LEN('Pencatat Penurunan Berat Badan'!$C71)=0,0,'Pencatat Penurunan Berat Badan'!$C71)),\"\")","v":0}]
[{"$f":"IF((LEN('Pencatat Penurunan Berat Badan'!$C72)=0),TRUE)","v":true},{"$f":"IFERROR(IF(A69,0,IF(LEN('Pencatat Penurunan Berat Badan'!$B72)=0,0,'Pencatat Penurunan Berat Badan'!$B72)),\"\")","v":"00:00:00"},{"$f":"IFERROR(IF(A69,0,IF(LEN('Pencatat Penurunan Berat Badan'!$C72)=0,0,'Pencatat Penurunan Berat Badan'!$C72)),\"\")","v":0}]
[{"$f":"IF((LEN('Pencatat Penurunan Berat Badan'!$C73)=0),TRUE)","v":true},{"$f":"IFERROR(IF(A70,0,IF(LEN('Pencatat Penurunan Berat Badan'!$B73)=0,0,'Pencatat Penurunan Berat Badan'!$B73)),\"\")","v":"00:00:00"},{"$f":"IFERROR(IF(A70,0,IF(LEN('Pencatat Penurunan Berat Badan'!$C73)=0,0,'Pencatat Penurunan Berat Badan'!$C73)),\"\")","v":0}]
[{"$f":"IF((LEN('Pencatat Penurunan Berat Badan'!$C74)=0),TRUE)","v":true},{"$f":"IFERROR(IF(A71,0,IF(LEN('Pencatat Penurunan Berat Badan'!$B74)=0,0,'Pencatat Penurunan Berat Badan'!$B74)),\"\")","v":"00:00:00"},{"$f":"IFERROR(IF(A71,0,IF(LEN('Pencatat Penurunan Berat Badan'!$C74)=0,0,'Pencatat Penurunan Berat Badan'!$C74)),\"\")","v":0}]
[{"$f":"IF((LEN('Pencatat Penurunan Berat Badan'!$C75)=0),TRUE)","v":true},{"$f":"IFERROR(IF(A72,0,IF(LEN('Pencatat Penurunan Berat Badan'!$B75)=0,0,'Pencatat Penurunan Berat Badan'!$B75)),\"\")","v":"00:00:00"},{"$f":"IFERROR(IF(A72,0,IF(LEN('Pencatat Penurunan Berat Badan'!$C75)=0,0,'Pencatat Penurunan Berat Badan'!$C75)),\"\")","v":0}]
[{"$f":"IF((LEN('Pencatat Penurunan Berat Badan'!$C76)=0),TRUE)","v":true},{"$f":"IFERROR(IF(A73,0,IF(LEN('Pencatat Penurunan Berat Badan'!$B76)=0,0,'Pencatat Penurunan Berat Badan'!$B76)),\"\")","v":"00:00:00"},{"$f":"IFERROR(IF(A73,0,IF(LEN('Pencatat Penurunan Berat Badan'!$C76)=0,0,'Pencatat Penurunan Berat Badan'!$C76)),\"\")","v":0}]
[{"$f":"IF((LEN('Pencatat Penurunan Berat Badan'!$C77)=0),TRUE)","v":true},{"$f":"IFERROR(IF(A74,0,IF(LEN('Pencatat Penurunan Berat Badan'!$B77)=0,0,'Pencatat Penurunan Berat Badan'!$B77)),\"\")","v":"00:00:00"},{"$f":"IFERROR(IF(A74,0,IF(LEN('Pencatat Penurunan Berat Badan'!$C77)=0,0,'Pencatat Penurunan Berat Badan'!$C77)),\"\")","v":0}]
[{"$f":"IF((LEN('Pencatat Penurunan Berat Badan'!$C78)=0),TRUE)","v":true},{"$f":"IFERROR(IF(A75,0,IF(LEN('Pencatat Penurunan Berat Badan'!$B78)=0,0,'Pencatat Penurunan Berat Badan'!$B78)),\"\")","v":"00:00:00"},{"$f":"IFERROR(IF(A75,0,IF(LEN('Pencatat Penurunan Berat Badan'!$C78)=0,0,'Pencatat Penurunan Berat Badan'!$C78)),\"\")","v":0}]
[{"$f":"IF((LEN('Pencatat Penurunan Berat Badan'!$C79)=0),TRUE)","v":true},{"$f":"IFERROR(IF(A76,0,IF(LEN('Pencatat Penurunan Berat Badan'!$B79)=0,0,'Pencatat Penurunan Berat Badan'!$B79)),\"\")","v":"00:00:00"},{"$f":"IFERROR(IF(A76,0,IF(LEN('Pencatat Penurunan Berat Badan'!$C79)=0,0,'Pencatat Penurunan Berat Badan'!$C79)),\"\")","v":0}]
[{"$f":"IF((LEN('Pencatat Penurunan Berat Badan'!$C80)=0),TRUE)","v":true},{"$f":"IFERROR(IF(A77,0,IF(LEN('Pencatat Penurunan Berat Badan'!$B80)=0,0,'Pencatat Penurunan Berat Badan'!$B80)),\"\")","v":"00:00:00"},{"$f":"IFERROR(IF(A77,0,IF(LEN('Pencatat Penurunan Berat Badan'!$C80)=0,0,'Pencatat Penurunan Berat Badan'!$C80)),\"\")","v":0}]
[{"$f":"IF((LEN('Pencatat Penurunan Berat Badan'!$C81)=0),TRUE)","v":true},{"$f":"IFERROR(IF(A78,0,IF(LEN('Pencatat Penurunan Berat Badan'!$B81)=0,0,'Pencatat Penurunan Berat Badan'!$B81)),\"\")","v":"00:00:00"},{"$f":"IFERROR(IF(A78,0,IF(LEN('Pencatat Penurunan Berat Badan'!$C81)=0,0,'Pencatat Penurunan Berat Badan'!$C81)),\"\")","v":0}]
[{"$f":"IF((LEN('Pencatat Penurunan Berat Badan'!$C82)=0),TRUE)","v":true},{"$f":"IFERROR(IF(A79,0,IF(LEN('Pencatat Penurunan Berat Badan'!$B82)=0,0,'Pencatat Penurunan Berat Badan'!$B82)),\"\")","v":"00:00:00"},{"$f":"IFERROR(IF(A79,0,IF(LEN('Pencatat Penurunan Berat Badan'!$C82)=0,0,'Pencatat Penurunan Berat Badan'!$C82)),\"\")","v":0}]
[{"$f":"IF((LEN('Pencatat Penurunan Berat Badan'!$C83)=0),TRUE)","v":true},{"$f":"IFERROR(IF(A80,0,IF(LEN('Pencatat Penurunan Berat Badan'!$B83)=0,0,'Pencatat Penurunan Berat Badan'!$B83)),\"\")","v":"00:00:00"},{"$f":"IFERROR(IF(A80,0,IF(LEN('Pencatat Penurunan Berat Badan'!$C83)=0,0,'Pencatat Penurunan Berat Badan'!$C83)),\"\")","v":0}]
[{"$f":"IF((LEN('Pencatat Penurunan Berat Badan'!$C84)=0),TRUE)","v":true},{"$f":"IFERROR(IF(A81,0,IF(LEN('Pencatat Penurunan Berat Badan'!$B84)=0,0,'Pencatat Penurunan Berat Badan'!$B84)),\"\")","v":"00:00:00"},{"$f":"IFERROR(IF(A81,0,IF(LEN('Pencatat Penurunan Berat Badan'!$C84)=0,0,'Pencatat Penurunan Berat Badan'!$C84)),\"\")","v":0}]
[{"$f":"IF((LEN('Pencatat Penurunan Berat Badan'!$C85)=0),TRUE)","v":true},{"$f":"IFERROR(IF(A82,0,IF(LEN('Pencatat Penurunan Berat Badan'!$B85)=0,0,'Pencatat Penurunan Berat Badan'!$B85)),\"\")","v":"00:00:00"},{"$f":"IFERROR(IF(A82,0,IF(LEN('Pencatat Penurunan Berat Badan'!$C85)=0,0,'Pencatat Penurunan Berat Badan'!$C85)),\"\")","v":0}]
[{"$f":"IF((LEN('Pencatat Penurunan Berat Badan'!$C86)=0),TRUE)","v":true},{"$f":"IFERROR(IF(A83,0,IF(LEN('Pencatat Penurunan Berat Badan'!$B86)=0,0,'Pencatat Penurunan Berat Badan'!$B86)),\"\")","v":"00:00:00"},{"$f":"IFERROR(IF(A83,0,IF(LEN('Pencatat Penurunan Berat Badan'!$C86)=0,0,'Pencatat Penurunan Berat Badan'!$C86)),\"\")","v":0}]
[{"$f":"IF((LEN('Pencatat Penurunan Berat Badan'!$C87)=0),TRUE)","v":true},{"$f":"IFERROR(IF(A84,0,IF(LEN('Pencatat Penurunan Berat Badan'!$B87)=0,0,'Pencatat Penurunan Berat Badan'!$B87)),\"\")","v":"00:00:00"},{"$f":"IFERROR(IF(A84,0,IF(LEN('Pencatat Penurunan Berat Badan'!$C87)=0,0,'Pencatat Penurunan Berat Badan'!$C87)),\"\")","v":0}]
[{"$f":"IF((LEN('Pencatat Penurunan Berat Badan'!$C88)=0),TRUE)","v":true},{"$f":"IFERROR(IF(A85,0,IF(LEN('Pencatat Penurunan Berat Badan'!$B88)=0,0,'Pencatat Penurunan Berat Badan'!$B88)),\"\")","v":"00:00:00"},{"$f":"IFERROR(IF(A85,0,IF(LEN('Pencatat Penurunan Berat Badan'!$C88)=0,0,'Pencatat Penurunan Berat Badan'!$C88)),\"\")","v":0}]
[{"$f":"IF((LEN('Pencatat Penurunan Berat Badan'!$C89)=0),TRUE)","v":true},{"$f":"IFERROR(IF(A86,0,IF(LEN('Pencatat Penurunan Berat Badan'!$B89)=0,0,'Pencatat Penurunan Berat Badan'!$B89)),\"\")","v":"00:00:00"},{"$f":"IFERROR(IF(A86,0,IF(LEN('Pencatat Penurunan Berat Badan'!$C89)=0,0,'Pencatat Penurunan Berat Badan'!$C89)),\"\")","v":0}]
[{"$f":"IF((LEN('Pencatat Penurunan Berat Badan'!$C90)=0),TRUE)","v":true},{"$f":"IFERROR(IF(A87,0,IF(LEN('Pencatat Penurunan Berat Badan'!$B90)=0,0,'Pencatat Penurunan Berat Badan'!$B90)),\"\")","v":"00:00:00"},{"$f":"IFERROR(IF(A87,0,IF(LEN('Pencatat Penurunan Berat Badan'!$C90)=0,0,'Pencatat Penurunan Berat Badan'!$C90)),\"\")","v":0}]
[{"$f":"IF((LEN('Pencatat Penurunan Berat Badan'!$C91)=0),TRUE)","v":true},{"$f":"IFERROR(IF(A88,0,IF(LEN('Pencatat Penurunan Berat Badan'!$B91)=0,0,'Pencatat Penurunan Berat Badan'!$B91)),\"\")","v":"00:00:00"},{"$f":"IFERROR(IF(A88,0,IF(LEN('Pencatat Penurunan Berat Badan'!$C91)=0,0,'Pencatat Penurunan Berat Badan'!$C91)),\"\")","v":0}]
[{"$f":"IF((LEN('Pencatat Penurunan Berat Badan'!$C92)=0),TRUE)","v":true},{"$f":"IFERROR(IF(A89,0,IF(LEN('Pencatat Penurunan Berat Badan'!$B92)=0,0,'Pencatat Penurunan Berat Badan'!$B92)),\"\")","v":"00:00:00"},{"$f":"IFERROR(IF(A89,0,IF(LEN('Pencatat Penurunan Berat Badan'!$C92)=0,0,'Pencatat Penurunan Berat Badan'!$C92)),\"\")","v":0}]
[{"$f":"IF((LEN('Pencatat Penurunan Berat Badan'!$C93)=0),TRUE)","v":true},{"$f":"IFERROR(IF(A90,0,IF(LEN('Pencatat Penurunan Berat Badan'!$B93)=0,0,'Pencatat Penurunan Berat Badan'!$B93)),\"\")","v":"00:00:00"},{"$f":"IFERROR(IF(A90,0,IF(LEN('Pencatat Penurunan Berat Badan'!$C93)=0,0,'Pencatat Penurunan Berat Badan'!$C93)),\"\")","v":0}]
[{"$f":"IF((LEN('Pencatat Penurunan Berat Badan'!$C94)=0),TRUE)","v":true},{"$f":"IFERROR(IF(A91,0,IF(LEN('Pencatat Penurunan Berat Badan'!$B94)=0,0,'Pencatat Penurunan Berat Badan'!$B94)),\"\")","v":"00:00:00"},{"$f":"IFERROR(IF(A91,0,IF(LEN('Pencatat Penurunan Berat Badan'!$C94)=0,0,'Pencatat Penurunan Berat Badan'!$C94)),\"\")","v":0}]
[{"$f":"IF((LEN('Pencatat Penurunan Berat Badan'!$C95)=0),TRUE)","v":true},{"$f":"IFERROR(IF(A92,0,IF(LEN('Pencatat Penurunan Berat Badan'!$B95)=0,0,'Pencatat Penurunan Berat Badan'!$B95)),\"\")","v":"00:00:00"},{"$f":"IFERROR(IF(A92,0,IF(LEN('Pencatat Penurunan Berat Badan'!$C95)=0,0,'Pencatat Penurunan Berat Badan'!$C95)),\"\")","v":0}]
[{"$f":"IF((LEN('Pencatat Penurunan Berat Badan'!$C96)=0),TRUE)","v":true},{"$f":"IFERROR(IF(A93,0,IF(LEN('Pencatat Penurunan Berat Badan'!$B96)=0,0,'Pencatat Penurunan Berat Badan'!$B96)),\"\")","v":"00:00:00"},{"$f":"IFERROR(IF(A93,0,IF(LEN('Pencatat Penurunan Berat Badan'!$C96)=0,0,'Pencatat Penurunan Berat Badan'!$C96)),\"\")","v":0}]
[{"$f":"IF((LEN('Pencatat Penurunan Berat Badan'!$C97)=0),TRUE)","v":true},{"$f":"IFERROR(IF(A94,0,IF(LEN('Pencatat Penurunan Berat Badan'!$B97)=0,0,'Pencatat Penurunan Berat Badan'!$B97)),\"\")","v":"00:00:00"},{"$f":"IFERROR(IF(A94,0,IF(LEN('Pencatat Penurunan Berat Badan'!$C97)=0,0,'Pencatat Penurunan Berat Badan'!$C97)),\"\")","v":0}]
[{"$f":"IF((LEN('Pencatat Penurunan Berat Badan'!$C98)=0),TRUE)","v":true},{"$f":"IFERROR(IF(A95,0,IF(LEN('Pencatat Penurunan Berat Badan'!$B98)=0,0,'Pencatat Penurunan Berat Badan'!$B98)),\"\")","v":"00:00:00"},{"$f":"IFERROR(IF(A95,0,IF(LEN('Pencatat Penurunan Berat Badan'!$C98)=0,0,'Pencatat Penurunan Berat Badan'!$C98)),\"\")","v":0}]
[{"$f":"IF((LEN('Pencatat Penurunan Berat Badan'!$C99)=0),TRUE)","v":true},{"$f":"IFERROR(IF(A96,0,IF(LEN('Pencatat Penurunan Berat Badan'!$B99)=0,0,'Pencatat Penurunan Berat Badan'!$B99)),\"\")","v":"00:00:00"},{"$f":"IFERROR(IF(A96,0,IF(LEN('Pencatat Penurunan Berat Badan'!$C99)=0,0,'Pencatat Penurunan Berat Badan'!$C99)),\"\")","v":0}]
[{"$f":"IF((LEN('Pencatat Penurunan Berat Badan'!$C100)=0),TRUE)","v":true},{"$f":"IFERROR(IF(A97,0,IF(LEN('Pencatat Penurunan Berat Badan'!$B100)=0,0,'Pencatat Penurunan Berat Badan'!$B100)),\"\")","v":"00:00:00"},{"$f":"IFERROR(IF(A97,0,IF(LEN('Pencatat Penurunan Berat Badan'!$C100)=0,0,'Pencatat Penurunan Berat Badan'!$C100)),\"\")","v":0}]
[{"$f":"IF((LEN('Pencatat Penurunan Berat Badan'!$C101)=0),TRUE)","v":true},{"$f":"IFERROR(IF(A98,0,IF(LEN('Pencatat Penurunan Berat Badan'!$B101)=0,0,'Pencatat Penurunan Berat Badan'!$B101)),\"\")","v":"00:00:00"},{"$f":"IFERROR(IF(A98,0,IF(LEN('Pencatat Penurunan Berat Badan'!$C101)=0,0,'Pencatat Penurunan Berat Badan'!$C101)),\"\")","v":0}]
[{"$f":"IF((LEN('Pencatat Penurunan Berat Badan'!$C102)=0),TRUE)","v":true},{"$f":"IFERROR(IF(A99,0,IF(LEN('Pencatat Penurunan Berat Badan'!$B102)=0,0,'Pencatat Penurunan Berat Badan'!$B102)),\"\")","v":"00:00:00"},{"$f":"IFERROR(IF(A99,0,IF(LEN('Pencatat Penurunan Berat Badan'!$C102)=0,0,'Pencatat Penurunan Berat Badan'!$C102)),\"\")","v":0}]
[{"$f":"IF((LEN('Pencatat Penurunan Berat Badan'!$C103)=0),TRUE)","v":true},{"$f":"IFERROR(IF(A100,0,IF(LEN('Pencatat Penurunan Berat Badan'!$B103)=0,0,'Pencatat Penurunan Berat Badan'!$B103)),\"\")","v":"00:00:00"},{"$f":"IFERROR(IF(A100,0,IF(LEN('Pencatat Penurunan Berat Badan'!$C103)=0,0,'Pencatat Penurunan Berat Badan'!$C103)),\"\")","v":0}]
[{"$f":"IF((LEN('Pencatat Penurunan Berat Badan'!$C104)=0),TRUE)","v":true},{"$f":"IFERROR(IF(A101,0,IF(LEN('Pencatat Penurunan Berat Badan'!$B104)=0,0,'Pencatat Penurunan Berat Badan'!$B104)),\"\")","v":"00:00:00"},{"$f":"IFERROR(IF(A101,0,IF(LEN('Pencatat Penurunan Berat Badan'!$C104)=0,0,'Pencatat Penurunan Berat Badan'!$C104)),\"\")","v":0}]
[{"$f":"IF((LEN('Pencatat Penurunan Berat Badan'!$C105)=0),TRUE)","v":true},{"$f":"IFERROR(IF(A102,0,IF(LEN('Pencatat Penurunan Berat Badan'!$B105)=0,0,'Pencatat Penurunan Berat Badan'!$B105)),\"\")","v":"00:00:00"},{"$f":"IFERROR(IF(A102,0,IF(LEN('Pencatat Penurunan Berat Badan'!$C105)=0,0,'Pencatat Penurunan Berat Badan'!$C105)),\"\")","v":0}]
[{"$f":"IF((LEN('Pencatat Penurunan Berat Badan'!$C106)=0),TRUE)","v":true},{"$f":"IFERROR(IF(A103,0,IF(LEN('Pencatat Penurunan Berat Badan'!$B106)=0,0,'Pencatat Penurunan Berat Badan'!$B106)),\"\")","v":"00:00:00"},{"$f":"IFERROR(IF(A103,0,IF(LEN('Pencatat Penurunan Berat Badan'!$C106)=0,0,'Pencatat Penurunan Berat Badan'!$C106)),\"\")","v":0}]
[{"$f":"IF((LEN('Pencatat Penurunan Berat Badan'!$C107)=0),TRUE)","v":true},{"$f":"IFERROR(IF(A104,0,IF(LEN('Pencatat Penurunan Berat Badan'!$B107)=0,0,'Pencatat Penurunan Berat Badan'!$B107)),\"\")","v":"00:00:00"},{"$f":"IFERROR(IF(A104,0,IF(LEN('Pencatat Penurunan Berat Badan'!$C107)=0,0,'Pencatat Penurunan Berat Badan'!$C107)),\"\")","v":0}]
[{"$f":"IF((LEN('Pencatat Penurunan Berat Badan'!$C108)=0),TRUE)","v":true},{"$f":"IFERROR(IF(A105,0,IF(LEN('Pencatat Penurunan Berat Badan'!$B108)=0,0,'Pencatat Penurunan Berat Badan'!$B108)),\"\")","v":"00:00:00"},{"$f":"IFERROR(IF(A105,0,IF(LEN('Pencatat Penurunan Berat Badan'!$C108)=0,0,'Pencatat Penurunan Berat Badan'!$C108)),\"\")","v":0}]
[{"$f":"IF((LEN('Pencatat Penurunan Berat Badan'!$C109)=0),TRUE)","v":true},{"$f":"IFERROR(IF(A106,0,IF(LEN('Pencatat Penurunan Berat Badan'!$B109)=0,0,'Pencatat Penurunan Berat Badan'!$B109)),\"\")","v":"00:00:00"},{"$f":"IFERROR(IF(A106,0,IF(LEN('Pencatat Penurunan Berat Badan'!$C109)=0,0,'Pencatat Penurunan Berat Badan'!$C109)),\"\")","v":0}]
[{"$f":"IF((LEN('Pencatat Penurunan Berat Badan'!$C110)=0),TRUE)","v":true},{"$f":"IFERROR(IF(A107,0,IF(LEN('Pencatat Penurunan Berat Badan'!$B110)=0,0,'Pencatat Penurunan Berat Badan'!$B110)),\"\")","v":"00:00:00"},{"$f":"IFERROR(IF(A107,0,IF(LEN('Pencatat Penurunan Berat Badan'!$C110)=0,0,'Pencatat Penurunan Berat Badan'!$C110)),\"\")","v":0}]